Workbook

Sheet SkillConfig
A1: ID | E1: icon | F1: scriptName | G1: IDGroup | H1: cd | I1: SkillType | J1: level | K1: name | L1: desc | M1: effectValue | N1: addPropertyType | O1: addPropertyValue
A2: int | D2: 使用神器 | E2: string | F2: string | G2: int | H2: int | I2: int | J2: int | K2: int | L2: int | M2: float[] | N2: int[] | O2: int[]
D3: =SUBTOTAL(3,D6:D9322) -> 0
A4: 技能ID IDGroup+技能等级 | C4: 所属英雄名字 （策划用） | D4: 所属英雄ID （策划用） | E4: 图标 | F4: 脚本名称 | G4: 技能序列 所属英雄ID+技能类型 潜规则5=远程普攻 | H4: 技能CD 普攻无CD | I4: 技能类型: 1= 基础 2= 小招 3= 大招 4= 被动 5= 简单被动(加属性) 6 =职业被动 7 =觉醒新技能效果|专属遗物效果 | J4: 等级 | K4: 技能名 语言表ID | L4: 技能描述 语言表ID | M4: 效果值 | N4: 1=生命百分比 2=攻击百分比 3=防御百分比 | O4: 具体效果值
A5: 10011 | C5: 普通攻击技能 | F5: NormalSkill | G5: 1001 | I5: 1 | J5: 1 | K5: 405077 | M5: 100
A6: 100011 | C6: 向周围释放4道剑气，造成伤害 | E6: ="icon_skill_"&G6 -> icon_skill_10001 | F6: S10001 | G6: 10001 | H6: 4 | I6: 2 | J6: 1 | K6: 45 | L6: 33 | M6: =H6*S6*100 -> 400 | S6: 1
A7: 100012 | C7: 旋风斩 | E7: ="icon_skill_"&G7 -> icon_skill_10001 | F7: S10001 | G7: 10001 | H7: 4 | I7: 2 | J7: 2 | K7: 45 | L7: 34 | M7: =H7*S7*100 -> 440 | S7: 1.1
A8: 100013 | C8: 旋风斩 | E8: ="icon_skill_"&G8 -> icon_skill_10001 | F8: S10001 | G8: 10001 | H8: 4 | I8: 2 | J8: 3 | K8: 45 | L8: 35 | M8: =H8*S8*100 -> 480 | S8: 1.2
A9: 100014 | C9: 旋风斩 | E9: ="icon_skill_"&G9 -> icon_skill_10001 | F9: S10001 | G9: 10001 | H9: 4 | I9: 2 | J9: 4 | K9: 45 | L9: 36 | M9: =H9*S9*100 -> 520 | S9: 1.3
A10: 100021 | C10: 加血: | G10: 10002 | I10: 5 | J10: 1 | N10: 1 | O10: 10
A11: 100022 | C11: 加血: | G11: 10002 | I11: 5 | J11: 2 | N11: 1 | O11: 20
A12: 100023 | C12: 加血: | G12: 10002 | I12: 5 | J12: 3 | N12: 1 | O12: 30
A13: 100024 | C13: 加血: | G13: 10002 | I13: 5 | J13: 4 | N13: 1 | O13: 40
A14: 100031 | C14: 加御: | G14: 10003 | I14: 5 | J14: 1 | N14: 3 | O14: 10
A15: 100032 | C15: 加御: | G15: 10003 | I15: 5 | J15: 2 | N15: 3 | O15: 20
A16: 100033 | C16: 加御: | G16: 10003 | I16: 5 | J16: 3 | N16: 3 | O16: 30
A17: 100034 | C17: 加御: | G17: 10003 | I17: 5 | J17: 4 | N17: 3 | O17: 40
A18: 100041 | C18: 专精 | F18: S10004 | G18: 10004 | I18: 4 | J18: 1 | M18: 1
A19: 100042 | C19: 专精 | F19: S10004 | G19: 10004 | I19: 4 | J19: 2 | M19: 1
A20: 100043 | C20: 专精 | F20: S10004 | G20: 10004 | I20: 4 | J20: 3 | M20: 2
A21: 100044 | C21: 专精 | F21: S10004 | G21: 10004 | I21: 4 | J21: 4 | M21: 3
A22: 100051 | C22: 降低收到的暴击伤害 | F22: S10005 | G22: 10005 | I22: 4 | J22: 1 | M22: 10
A23: 100052 | C23: 降低收到的暴击伤害 | F23: S10005 | G23: 10005 | I23: 4 | J23: 2 | M23: 11
A24: 100053 | C24: 降低收到的暴击伤害 | F24: S10005 | G24: 10005 | I24: 4 | J24: 3 | M24: 12
A25: 100054 | C25: 降低收到的暴击伤害 | F25: S10005 | G25: 10005 | I25: 4 | J25: 4 | M25: 13
A26: 300011 | C26: 火焰烧烤 | E26: ="icon_skill_"&G26 -> icon_skill_30001 | F26: S30001 | G26: 30001 | H26: 6 | I26: 2 | J26: 1 | K26: 50 | L26: 46 | M26: 60;3 | R26: =H26*S6/2/5 -> 0.6
A27: 300012 | C27: 火焰烧烤 | E27: ="icon_skill_"&G27 -> icon_skill_30001 | F27: S30001 | G27: 30001 | H27: 6 | I27: 2 | J27: 2 | K27: 50 | L27: 47 | M27: 66;3 | R27: =H27*S7/2/5 -> 0.66
A28: 300013 | C28: 火焰烧烤 | E28: ="icon_skill_"&G28 -> icon_skill_30001 | F28: S30001 | G28: 30001 | H28: 6 | I28: 2 | J28: 3 | K28: 50 | L28: 48 | M28: 72;3 | R28: =H28*S8/2/5 -> 0.72
A29: 300014 | C29: 火焰烧烤 | E29: ="icon_skill_"&G29 -> icon_skill_30001 | F29: S30001 | G29: 30001 | H29: 6 | I29: 2 | J29: 4 | K29: 50 | L29: 49 | M29: 78;4 | R29: =H29*S9/2/5 -> 0.78
A30: 300021 | C30: 加攻: | G30: 30002 | I30: 5 | J30: 1 | N30: 2 | O30: 10
A31: 300022 | C31: 加攻: | G31: 30002 | I31: 5 | J31: 2 | N31: 2 | O31: 20
A32: 300023 | C32: 加攻: | G32: 30002 | I32: 5 | J32: 3 | N32: 2 | O32: 30
A33: 300024 | C33: 加攻: | G33: 30002 | I33: 5 | J33: 4 | N33: 2 | O33: 40
A34: 300031 | C34: 加血: | G34: 30003 | I34: 5 | J34: 1 | N34: 1 | O34: 10
A35: 300032 | C35: 加血: | G35: 30003 | I35: 5 | J35: 2 | N35: 1 | O35: 20
A36: 300033 | C36: 加血: | G36: 30003 | I36: 5 | J36: 3 | N36: 1 | O36: 30
A37: 300034 | C37: 加血: | G37: 30003 | I37: 5 | J37: 4 | N37: 1 | O37: 40
A38: 300041 | C38: 专精 | F38: S30004 | G38: 30004 | I38: 4 | J38: 1 | M38: 1
A39: 300042 | C39: 专精 | F39: S30004 | G39: 30004 | I39: 4 | J39: 2 | M39: 2
A40: 300043 | C40: 专精 | F40: S30004 | G40: 30004 | I40: 4 | J40: 3 | M40: 3
A41: 300044 | C41: 专精 | F41: S30004 | G41: 30004 | I41: 4 | J41: 4 | M41: 4
A42: 300051 | C42: 技能暴击 | F42: S30005 | G42: 30005 | I42: 4 | J42: 1 | M42: 10
A43: 300052 | C43: 技能暴击 | F43: S30005 | G43: 30005 | I43: 4 | J43: 2 | M43: 20
A44: 300053 | C44: 技能暴击 | F44: S30005 | G44: 30005 | I44: 4 | J44: 3 | M44: 30
A45: 300054 | C45: 技能暴击 | F45: S30005 | G45: 30005 | I45: 4 | J45: 4 | M45: 40
A46: 200011 | C46: 全体治疗 | E46: ="icon_skill_"&G46 -> icon_skill_20001 | F46: S20001 | G46: 20001 | H46: 5 | I46: 2 | J46: 1 | K46: 55 | L46: 51 | M46: =H46*S6*100*1.3 -> 650
A47: 200012 | C47: 全体治疗 | E47: ="icon_skill_"&G47 -> icon_skill_20001 | F47: S20001 | G47: 20001 | H47: 5 | I47: 2 | J47: 2 | K47: 55 | L47: 52 | M47: =H47*S7*100*1.3 -> 715
A48: 200013 | C48: 全体治疗 | E48: ="icon_skill_"&G48 -> icon_skill_20001 | F48: S20001 | G48: 20001 | H48: 5 | I48: 2 | J48: 3 | K48: 55 | L48: 53 | M48: =H48*S8*100*1.3 -> 780
A49: 200014 | C49: 全体治疗 | E49: ="icon_skill_"&G49 -> icon_skill_20001 | F49: S20001 | G49: 20001 | H49: 5 | I49: 2 | J49: 4 | K49: 55 | L49: 54 | M49: =H49*S9*100*1.3 -> 845
A50: 200021 | C50: 加攻: | G50: 20002 | I50: 5 | J50: 1 | N50: 2 | O50: 10
A51: 200022 | C51: 加攻: | G51: 20002 | I51: 5 | J51: 2 | N51: 2 | O51: 20
A52: 200023 | C52: 加攻: | G52: 20002 | I52: 5 | J52: 3 | N52: 2 | O52: 30
A53: 200024 | C53: 加攻: | G53: 20002 | I53: 5 | J53: 4 | N53: 2 | O53: 40
A54: 200031 | C54: 加血: | G54: 20003 | I54: 5 | J54: 1 | N54: 1 | O54: 10
A55: 200032 | C55: 加血: | G55: 20003 | I55: 5 | J55: 2 | N55: 1 | O55: 20
A56: 200033 | C56: 加血: | G56: 20003 | I56: 5 | J56: 3 | N56: 1 | O56: 30
A57: 200034 | C57: 加血: | G57: 20003 | I57: 5 | J57: 4 | N57: 1 | O57: 40
A58: 200041 | C58: 专精 | G58: 20004 | I58: 4 | J58: 1 | M58: 50;50
A59: 200042 | C59: 专精 | G59: 20004 | I59: 4 | J59: 2 | M59: 60;51
A60: 200043 | C60: 专精 | G60: 20004 | I60: 4 | J60: 3 | M60: 70;51
A61: 200044 | C61: 专精 | G61: 20004 | I61: 4 | J61: 4 | M61: 80;52
A62: 200051 | C62: 平等 | G62: 20005 | I62: 4 | J62: 1 | M62: 1
A63: 200052 | C63: 平等 | G63: 20005 | I63: 4 | J63: 2 | M63: 2
A64: 200053 | C64: 平等 | G64: 20005 | I64: 4 | J64: 3 | M64: 3
A65: 200054 | C65: 平等 | G65: 20005 | I65: 4 | J65: 4 | M65: 4
A66: 400011 | C66: 连续射击 | E66: ="icon_skill_"&G66 -> icon_skill_40001 | F66: S40001 | G66: 40001 | H66: 10 | I66: 2 | J66: 1 | K66: 60 | L66: 56 | M66: =H66*S6*100/3/5 -> 66.66666667
A67: 400012 | C67: 连续射击 | E67: ="icon_skill_"&G67 -> icon_skill_40001 | F67: S40001 | G67: 40001 | H67: 10 | I67: 2 | J67: 2 | K67: 60 | L67: 57 | M67: =H67*S7*100/3/5 -> 73.33333333
A68: 400013 | C68: 连续射击 | E68: ="icon_skill_"&G68 -> icon_skill_40001 | F68: S40001 | G68: 40001 | H68: 10 | I68: 2 | J68: 3 | K68: 60 | L68: 58 | M68: =H68*S8*100/3/5 -> 80
A69: 400014 | C69: 连续射击 | E69: ="icon_skill_"&G69 -> icon_skill_40001 | F69: S40001 | G69: 40001 | H69: 10 | I69: 2 | J69: 4 | K69: 60 | L69: 59 | M69: =H69*S9*100/3/5 -> 86.66666667
A70: 400021 | C70: 加攻: | G70: 40002 | I70: 5 | J70: 1 | N70: 2 | O70: 10
A71: 400022 | C71: 加攻: | G71: 40002 | I71: 5 | J71: 2 | N71: 2 | O71: 20
A72: 400023 | C72: 加攻: | G72: 40002 | I72: 5 | J72: 3 | N72: 2 | O72: 30
A73: 400024 | C73: 加攻: | G73: 40002 | I73: 5 | J73: 4 | N73: 2 | O73: 40
A74: 400031 | C74: 加血: | G74: 40003 | I74: 5 | J74: 1 | N74: 1 | O74: 10
A75: 400032 | C75: 加血: | G75: 40003 | I75: 5 | J75: 2 | N75: 1 | O75: 20
A76: 400033 | C76: 加血: | G76: 40003 | I76: 5 | J76: 3 | N76: 1 | O76: 30
A77: 400034 | C77: 加血: | G77: 40003 | I77: 5 | J77: 4 | N77: 1 | O77: 40
A78: 400041 | C78: 专精 | G78: 40004 | I78: 4 | J78: 1 | M78: 3
A79: 400042 | C79: 专精 | G79: 40004 | I79: 4 | J79: 2 | M79: 5
A80: 400043 | C80: 专精 | G80: 40004 | I80: 4 | J80: 3 | M80: 7
A81: 400044 | C81: 专精 | G81: 40004 | I81: 4 | J81: 4 | M81: 9
A82: 400051 | C82: 平等 | G82: 40005 | I82: 4 | J82: 1 | M82: 10;20
A83: 400052 | C83: 平等 | G83: 40005 | I83: 4 | J83: 2 | M83: 15;30
A84: 400053 | C84: 平等 | G84: 40005 | I84: 4 | J84: 3 | M84: 20;40
A85: 400054 | C85: 平等 | G85: 40005 | I85: 4 | J85: 4 | M85: 25;50
A86: 1100011 | C86: 大蛇第一个技能，对敌人照成伤害，并将敌人击退一段距离 | E86: ="icon_skill_"&G86 -> icon_skill_110001 | F86: S110001 | G86: 110001 | H86: 5 | I86: 2 | J86: 1 | K86: 405077 | M86: =H86*S6*100 -> 500 | Q86: 蛇BOSS
A87: 1100012 | C87: 大蛇第一个技能，对敌人照成伤害，并将敌人击退一段距离 | E87: icon_skill_110001 | F87: S110001 | G87: 110001 | H87: 5 | I87: 2 | J87: 2 | K87: 405077 | M87: =H87*S7*100 -> 550
A88: 1100013 | C88: 大蛇第一个技能，对敌人照成伤害，并将敌人击退一段距离 | E88: icon_skill_110001 | F88: S110001 | G88: 110001 | H88: 5 | I88: 2 | J88: 3 | K88: 405077 | M88: =H88*S8*100 -> 600
A89: 1100014 | C89: 大蛇第一个技能，对敌人照成伤害，并将敌人击退一段距离 | E89: icon_skill_110001 | F89: S110001 | G89: 110001 | H89: 5 | I89: 2 | J89: 4 | K89: 405077 | M89: =H89*S9*100 -> 650
A90: 1100021 | C90: 大蛇技能2，吐火焰经过的敌人收到伤害,没0.5秒收到一次伤害 | E90: icon_skill_110002 | F90: S110002 | G90: 110002 | H90: 10 | I90: 2 | J90: 1 | K90: 405077 | M90: =H90*S6*100/2/2 -> 250 | Q90: 蛇BOSS
A91: 1100022 | C91: 大蛇技能2，吐火焰经过的敌人收到伤害,没0.5秒收到一次伤害 | E91: icon_skill_110002 | F91: S110002 | G91: 110002 | H91: 10 | I91: 2 | J91: 2 | K91: 405077 | M91: =H91*S7*100/2/2 -> 275
A92: 1100023 | C92: 大蛇技能2，吐火焰经过的敌人收到伤害,没0.5秒收到一次伤害 | E92: icon_skill_110002 | F92: S110002 | G92: 110002 | H92: 10 | I92: 2 | J92: 3 | K92: 405077 | M92: =H92*S8*100/2/2 -> 300
A93: 1100024 | C93: 大蛇技能2，吐火焰经过的敌人收到伤害,没0.5秒收到一次伤害 | E93: icon_skill_110002 | F93: S110002 | G93: 110002 | H93: 10 | I93: 2 | J93: 4 | K93: 405077 | M93: =H93*S9*100/2/2 -> 325
A94: 1200011 | C94: 小蛇精英怪技能 向前冲撞，对冲撞的敌人造成伤害 | E94: icon_skill_120001 | F94: S120001 | G94: 120001 | H94: 4 | I94: 2 | J94: 1 | K94: 405077 | M94: =H94*S6*100 -> 400 | Q94: 精英蛇
A95: 1200012 | C95: 小蛇精英怪技能 向前冲撞，对冲撞的敌人造成伤害 | E95: icon_skill_120001 | F95: S120001 | G95: 120001 | H95: 4 | I95: 2 | J95: 2 | K95: 405077 | M95: =H95*S7*100 -> 440
A96: 1200013 | C96: 小蛇精英怪技能 向前冲撞，对冲撞的敌人造成伤害 | E96: icon_skill_120001 | F96: S120001 | G96: 120001 | H96: 4 | I96: 2 | J96: 3 | K96: 405077 | M96: =H96*S8*100 -> 480
A97: 1200014 | C97: 小蛇精英怪技能 向前冲撞，对冲撞的敌人造成伤害 | E97: icon_skill_120001 | F97: S120001 | G97: 120001 | H97: 4 | I97: 2 | J97: 4 | K97: 405077 | M97: =H97*S9*100 -> 520
A98: 1300011 | C98: 狼精英技能 | E98: icon_skill_130001 | F98: S130001 | G98: 130001 | H98: 5 | I98: 2 | J98: 1 | K98: 405077 | M98: =H98*S6*100 -> 500 | Q98: 精英狗
A99: 1300012 | C99: 狼精英技能 | E99: icon_skill_130001 | F99: S130001 | G99: 130001 | H99: 5 | I99: 2 | J99: 2 | K99: 405077 | M99: =H99*S7*100 -> 550
A100: 1300013 | C100: 狼精英技能 | E100: icon_skill_130001 | F100: S130001 | G100: 130001 | H100: 5 | I100: 2 | J100: 3 | K100: 405077 | M100: =H100*S8*100 -> 600
A101: 1300014 | C101: 狼精英技能 | E101: icon_skill_130001 | F101: S130001 | G101: 130001 | H101: 5 | I101: 2 | J101: 4 | K101: 405077 | M101: =H101*S9*100 -> 650
A102: 1400011 | C102: 狼boss的第一个技能 | E102: icon_skill_140001 | F102: S140001 | G102: 140001 | H102: 3 | I102: 2 | J102: 1 | K102: 405077 | M102: =H102*S6*100 -> 300 | Q102: 狗BOSS
A103: 1400012 | C103: 狼boss的第一个技能 | E103: icon_skill_140001 | F103: S140001 | G103: 140001 | H103: 3 | I103: 2 | J103: 2 | K103: 405077 | M103: =H103*S7*100 -> 330
A104: 1400013 | C104: 狼boss的第一个技能 | E104: icon_skill_140001 | F104: S140001 | G104: 140001 | H104: 3 | I104: 2 | J104: 3 | K104: 405077 | M104: =H104*S8*100 -> 360
A105: 1400014 | C105: 狼boss的第一个技能 | E105: icon_skill_140001 | F105: S140001 | G105: 140001 | H105: 3 | I105: 2 | J105: 4 | K105: 405077 | M105: =H105*S9*100 -> 390
A106: 1400031 | C106: 狼boss 第3个技能，跳跃攻击范围那的敌人 | E106: icon_skill_140003 | F106: S140003 | G106: 140003 | H106: 8 | I106: 2 | J106: 1 | K106: 405077 | M106: =H106*S6*100 -> 800 | Q106: 狗BOSS
A107: 1400032 | C107: 狼boss 第3个技能，跳跃攻击范围那的敌人 | E107: icon_skill_140003 | F107: S140003 | G107: 140003 | H107: 8 | I107: 2 | J107: 2 | K107: 405077 | M107: =H107*S7*100 -> 880
A108: 1400033 | C108: 狼boss 第3个技能，跳跃攻击范围那的敌人 | E108: icon_skill_140003 | F108: S140003 | G108: 140003 | H108: 8 | I108: 2 | J108: 3 | K108: 405077 | M108: =H108*S8*100 -> 960
A109: 1400034 | C109: 狼boss 第3个技能，跳跃攻击范围那的敌人 | E109: icon_skill_140003 | F109: S140003 | G109: 140003 | H109: 8 | I109: 2 | J109: 4 | K109: 405077 | M109: =H109*S9*100 -> 1040

Sheet SkillUpConfig
A1: ID | B1: upType | C1: upValue | D1: idx | E1: skillLv
A2: int | B2: int | C2: int | D2: int | E2: int
A4: 表ID 技能ID的最后两位 1=普攻 | B4: 1.等级 2.星级 | C4: 具体星级 或等级 | D4: 技能位置 对应HeroModel表的下标 | E4: 对应HeroModel表的下标的等级
A5: 1 | B5: 1 | C5: 1 | D5: 0 | E5: 1
A6: 11 | B6: 1 | C6: 1 | D6: 1 | E6: 1
A7: 12 | B7: 1 | C7: 31 | D7: 1 | E7: 2
A8: 13 | B8: 1 | C8: 131 | D8: 1 | E8: 3
A9: 14 | B9: 1 | C9: 231 | D9: 1 | E9: 4
A10: 21 | B10: 1 | C10: 11 | D10: 2 | E10: 1
A11: 22 | B11: 1 | C11: 51 | D11: 2 | E11: 2
A12: 23 | B12: 1 | C12: 151 | D12: 2 | E12: 3
A13: 24 | B13: 1 | C13: 251 | D13: 2 | E13: 4
A14: 31 | B14: 2 | C14: 5 | D14: 3 | E14: 1
A15: 32 | B15: 1 | C15: 71 | D15: 3 | E15: 2
A16: 33 | B16: 1 | C16: 171 | D16: 3 | E16: 3
A17: 34 | B17: 1 | C17: 271 | D17: 3 | E17: 4
A18: 41 | B18: 2 | C18: 7 | D18: 4 | E18: 1
A19: 42 | B19: 1 | C19: 91 | D19: 4 | E19: 2
A20: 43 | B20: 1 | C20: 191 | D20: 4 | E20: 3
A21: 44 | B21: 1 | C21: 291 | D21: 4 | E21: 4
A22: 51 | B22: 2 | C22: 9 | D22: 5 | E22: 1
A23: 52 | B23: 1 | C23: 111 | D23: 5 | E23: 2
A24: 53 | B24: 1 | C24: 211 | D24: 5 | E24: 3

Sheet 技能设计
A1: 英雄ID | B1: 英雄名 | C1: 职业 | D1: 品质 | E1: 技能1 | F1: 技能2 | G1: 技能3 | H1: 技能4 | I1: 技能5
A2: 105 | B2: 加雷斯·风暴 | C2: 1.战士 | D2: 传说ssr | E2: 旋风斩: 释放1道剑气，造成伤害 | F2: 加血: 提升血量{0} | G2: 防御: 提升防御{0} | H2: 专精: 增加{0}道[旋风斩]的剑气数量 | I2: 坚韧: 降低{0}的暴击伤害
A5: 107 | B5: 马修·星辰 | C5: 2.法师 | D5: 传说ssr | E5: 火焰烧烤: 对前方范围释放火焰，对范围内的敌人进行多次灼烧 | F5: 加攻: 提升攻击力{0} | G5: 加血: 提升血量{0} | H5: 专精: 延长{0}秒[火焰烧烤]的持续时间 | I5: 技能暴击: 提升{0}技能暴击率
A8: 113 | B8: 卢克·净魂 | C8: 3.牧师 | D8: 传说ssr | E8: 治疗: 对生命最低的英雄进行治疗 | F8: 加攻: 提升攻击力{0} | G8: 加血: 提升血量{0} | H8: 专精: 对生命值低于{0}%的英雄，提高{1}%的治疗量 | I8: 平等: 同时治疗{0}名英雄
A11: 116 | B11: 莱恩·影踪 | C11: 4.游侠 | D11: 传说ssr | E11: 连续射击: 向前方连续射出多支魔法箭 | F11: 加攻: 提升攻击力{0} | G11: 加血: 提升血量{0} | H11: 专精: 增加{0}支[连续射击]的魔法箭 | I11: 追击: 对生命值低于{0}的敌人，额外造成{1}伤害
C13: 4.游侠
